bitfinex/quotes_BTCUSD_20220201
["timestamp","ask_amount","ask_price","bid_price","bid_amount"]
[1643744155971,0.451947,38462.0,38461.0,0.0001]
[1643744156769,0.102,38462.0,38461.0,0.0001]
[1643744156970,0.052,38462.0,38461.0,0.0001]
[1643744157893,0.63890376,38462.0,38461.0,0.0001]
[1643744158073,0.68890376,38462.0,38461.0,0.0001]
[1643744158273,1.78890376,38462.0,38461.0,0.0001]
[1643744158472,0.68890376,38462.0,38461.0,0.0001]
[1643744158670,0.68293681,38462.0,38461.0,0.0001]
[1643744158875,2.05793681,38462.0,38461.0,0.0001]
[1643744159176,2.95222072,38462.0,38461.0,0.0001]
[1643744159412,2.98971283,38462.0,38461.0,0.0001]
[1643744159611,2.18971283,38462.0,38461.0,0.0001]
[1643744159817,2.18971283,38462.0,38450.0,0.0031]
[1643744159818,1.39461352,38460.0,38450.0,0.0031]
[1643744160013,1.35,38461.0,38450.0,0.0031]
[1643744160014,3.2756,38456.0,38450.0,0.0031]
[1643744160215,3.076947,38456.0,38451.0,0.0131]
[1643744160420,3.076947,38456.0,38454.0,0.03972]
[1643744160616,3.076947,38456.0,38454.0,0.0402435]
[1643744160817,1.35,38455.0,38454.0,0.0025235]
[1643744161015,1.35,38455.0,38451.0,0.0131]
[1643744161016,1.25,38454.0,38451.0,0.0131]
[1643744161219,0.62299593,38453.0,38451.0,0.0131]
[1643744161520,0.62299593,38453.0,38449.0,0.0011]
[1643744161521,1.375,38450.0,38449.0,0.0011]
[1643744161717,1.824947,38450.0,38449.0,0.0011]
[1643744161921,0.10835638,38447.0,38437.0,0.002]
[1643744162120,3.3990013,38438.0,38437.0,0.002]
[1643744162318,3.8509483,38438.0,38437.0,0.002]
[1643744162522,3.88555697,38438.0,38437.0,0.002]
[1643744163180,3.88555697,38438.0,38421.0,0.0122]
[1643744163181,1.35,38435.0,38421.0,0.0122]
[1643744163391,1.35,38435.0,38414.0,0.0011]
[1643744163392,1.45,38428.0,38414.0,0.0011]
[1643744163583,1.45,38428.0,38417.0,0.01712262]
[1643744163584,0.6506,38421.0,38417.0,0.01712262]
[1643744163781,0.6506,38421.0,38417.0,0.00155522]
[1643744163782,0.5982592,38420.0,38417.0,0.00155522]
[1643744163981,0.5982592,38420.0,38414.0,0.0011]
[1643744163982,1.375,38417.0,38414.0,0.0011]
[1643744164176,1.375,38415.0,38414.0,0.0011]
[1643744164379,1.776947,38415.0,38414.0,0.00088664]
[1643744165482,0.401947,38415.0,38414.0,0.00088664]
[1643744165881,0.052,38415.0,38414.0,0.00088664]
[1643744166279,0.2,38435.0,38414.0,1.67600112]
[1643744166280,0.2420205,38428.0,38414.0,1.67600112]
[1643744166478,0.03286,38442.0,38424.0,0.10260083]
[1643744166479,0.052,38431.0,38424.0,0.10260083]
[1643744166929,0.052,38440.0,38425.0,0.06504]
[1643744167128,0.052,38440.0,38428.0,0.05]
[1643744167434,0.03286,38442.0,38436.0,0.26064895]
[1643744167630,0.03286,38442.0,38437.0,0.47100943]
[1643744167828,0.03286,38442.0,38437.0,0.65471792]
[1643744168033,0.03286,38442.0,38437.0,0.70471792]
[1643744168229,0.03286,38442.0,38437.0,0.85471792]
[1643744168429,0.03286,38442.0,38438.0,0.065005]
[1643744168626,0.03286,38442.0,38439.0,0.26976082]
[1643744168828,0.03286,38442.0,38436.0,0.065018]
[1643744169030,0.56988868,38441.0,38438.0,0.00117297]
[1643744169227,0.03286,38442.0,38438.0,0.00117297]
[1643744169429,0.03286,38442.0,38436.0,0.04617297]
[1643744169827,0.13178882,38442.0,38432.0,0.10423119]
[1643744170127,0.18178882,38442.0,38435.0,0.21195517]
[1643744170329,0.08286,38442.0,38436.0,0.11058039]
[1643744170571,0.08286,38442.0,38436.0,0.15675336]
[1643744170765,0.05,38441.0,38436.0,0.15675336]
[1643744171465,0.03286,38442.0,38441.0,0.29284841]
[1643744174817,0.03286,38442.0,38441.0,0.33902138]
[1643744175218,0.03286,38442.0,38441.0,0.33662138]
[1643744175519,0.03286,38442.0,38441.0,0.29284841]
[1643744176119,0.03286,38442.0,38439.0,0.130024]
[1643744176319,0.03286,38442.0,38438.0,0.065011]
[1643744177120,0.03286,38442.0,38438.0,0.29252509]
[1643744177521,0.03286,38442.0,38438.0,0.35753709]
[1643744177721,0.03286,38442.0,38439.0,0.18424313]
[1643744177922,0.03286,38442.0,38441.0,0.04377297]
[1643744178768,0.00136485,38455.0,38453.0,0.2727216]
[1643744179370,0.00136485,38455.0,38446.0,0.1]
[1643744179568,0.00136485,38455.0,38444.0,0.02563]
[1643744179569,0.21749195,38463.0,38444.0,0.02563]
[1643744179770,0.21749195,38463.0,38446.0,0.19692706]
[1643744179771,0.00136509,38455.0,38446.0,0.19692706]
[1643744179966,0.23850925,38455.0,38444.0,0.02563]
[1643744180370,0.14386114,38454.0,38444.0,0.02563]
[1643744180573,0.26203978,38453.0,38444.0,0.02563]
[1643744180776,0.052,38452.0,38444.0,0.02563]
[1643744180984,1.375,38450.0,38444.0,0.02563]
[1643744181173,0.00622703,38447.0,38444.0,0.02563]
[1643744181371,0.00622703,38445.0,38444.0,0.02563]
[1643744181569,0.72098734,38445.0,38444.0,0.02563]
[1643744181813,2.14598734,38445.0,38444.0,3e-05]
[1643744182015,2.24598734,38445.0,38444.0,3e-05]
[1643744182816,2.41694253,38443.0,38442.0,0.09238405]
[1643744183019,2.76688953,38443.0,38442.0,0.09238405]
[1643744183217,2.97511656,38443.0,38442.0,0.09238405]
[1643744184022,0.03597124,38442.0,38436.0,0.00116717]
[1643744184224,2.07132768,38441.0,38436.0,0.00116717]
[1643744184419,2.07132768,38441.0,38421.0,0.449437]
[1643744184620,2.07132768,38441.0,38436.0,0.00116717]
[1643744184822,0.16902395,38440.0,38436.0,0.00116717]
[1643744185121,0.69205858,38439.0,38436.0,0.00116717]
[1643744185571,0.6672563,38439.0,38435.0,0.12422309]
[1643744185768,0.451947,38439.0,38436.0,0.00116719]
[1643744186067,0.66539057,38439.0,38436.0,0.00116719]
[1643744186468,2.04039057,38439.0,38436.0,0.00116719]
[1643744186669,2.04039057,38439.0,38424.0,0.065035]
[1643744187067,1.69044357,38439.0,38436.0,0.00116719]
[1643744187269,0.349947,38438.0,38436.0,0.00116719]
[1643744187473,0.401947,38438.0,38436.0,0.00116719]
[1643744188067,0.349947,38438.0,38433.0,0.11669351]
[1643744188270,0.0479,38437.0,38435.0,0.0011672]
[1643744188469,0.397847,38436.0,38435.0,0.0011672]
[1643744188666,0.447847,38436.0,38435.0,0.0011672]
[1643744188870,0.947847,38436.0,38435.0,0.0011672]
[1643744189314,0.947847,38436.0,38434.0,0.00116725]
[1643744189715,0.447847,38436.0,38434.0,0.00116725]
[1643744190021,0.21570364,38449.0,38434.0,0.04494022]
[1643744190217,0.60432703,38452.0,38434.0,0.04494022]
[1643744190218,0.81970689,38452.0,38434.0,0.04494022]
[1643744190415,0.00622703,38449.0,38430.0,0.05]
[1643744190617,0.81970689,38452.0,38436.0,0.00116717]
[1643744190816,0.17039054,38449.0,38440.0,0.28725036]
[1643744191018,0.22160689,38452.0,38441.0,0.08968889]
[1643744191320,1.59660689,38452.0,38441.0,0.08968889]
[1643744191519,0.349947,38451.0,38441.0,0.08968889]
[1643744191716,0.56541711,38451.0,38441.0,0.08968889]
[1643744191917,0.00622703,38448.0,38440.0,0.28725036]
[1643744192119,0.00622703,38448.0,38436.0,0.00116717]
[1643744192120,0.13822091,38446.0,38436.0,0.00116717]
[1643744192319,0.35413994,38446.0,38436.0,0.00116717]
[1643744192720,0.35413994,38446.0,38433.0,0.001]
[1643744192721,0.397847,38445.0,38433.0,0.001]
[1643744192921,0.21591903,38446.0,38436.0,0.00116717]
[1643744193164,0.10419818,38452.0,38440.0,0.11759514]
[1643744193369,0.10419818,38452.0,38436.0,0.00116717]
[1643744193370,0.00622703,38445.0,38436.0,0.00116717]
[1643744193563,0.0479,38444.0,38436.0,0.00116717]
[1643744193763,0.00622703,38442.0,38436.0,0.00116717]
[1643744193962,0.00622703,38442.0,38433.0,0.001]
[1643744193963,0.48812371,38441.0,38433.0,0.001]
[1643744194166,0.48812371,38441.0,38436.0,0.00116717]
[1643744194167,0.23453994,38440.0,38436.0,0.00116717]
[1643744194366,0.28453994,38440.0,38436.0,0.00116717]
[1643744194565,0.05,38440.0,38436.0,0.00116717]
[1643744194764,0.26245401,38440.0,38436.0,0.09259699]
[1643744194964,0.26245401,38440.0,38436.0,0.00116717]
[1643744195166,0.05,38440.0,38435.0,0.09832267]
[1643744195466,1.375,38446.0,38436.0,0.00116717]
[1643744195665,1.375,38446.0,38441.0,0.11507908]
[1643744195864,0.349947,38445.0,38441.0,0.11507908]
[1643744196366,0.15843035,38448.0,38441.0,0.11507908]
[1643744196566,0.349947,38447.0,38441.0,0.11507908]
[1643744197230,0.349947,38447.0,38443.0,0.37692384]
[1643744198235,0.349947,38447.0,38443.0,0.1001644]
[1643744198434,0.349947,38447.0,38441.0,0.11507908]
[1643744198835,0.00622703,38457.0,38442.0,0.25425217]
[1643744199038,0.0013649,38455.0,38442.0,0.25425217]
[1643744199234,0.349947,38454.0,38446.0,0.29707379]
[1643744199443,0.00622703,38453.0,38442.0,0.23827511]
[1643744199633,0.0013649,38455.0,38448.0,0.10406161]
[1643744199837,0.17111294,38451.0,38446.0,0.0804976]
[1643744200036,1.43122703,38458.0,38447.0,0.0922279]
[1643744200237,0.00136506,38455.0,38447.0,0.0922279]
[1643744200437,0.349947,38454.0,38447.0,0.0922279]
[1643744200678,0.00136506,38455.0,38447.0,0.0922279]
[1643744200876,0.00136506,38455.0,38447.0,0.33393589]
[1643744201074,0.00136506,38455.0,38448.0,0.29670073]
[1643744201273,0.18561168,38459.0,38448.0,0.29670073]
[1643744201475,0.18561168,38459.0,38453.0,0.09739501]
[1643744201675,0.35617403,38458.0,38448.0,0.29670073]
[1643744201877,0.13006948,38456.0,38448.0,0.29670073]
[1643744202279,0.06503448,38456.0,38448.0,0.29670073]
[1643744202878,0.065033,38455.0,38446.0,0.0804976]
[1643744203078,0.18272278,38453.0,38447.0,0.01952086]
[1643744203278,0.06504338,38452.0,38447.0,0.01952086]
[1643744203482,0.48003389,38451.0,38447.0,0.01952086]
[1643744203679,0.24075705,38450.0,38447.0,0.01952086]
[1643744203981,0.349947,38449.0,38443.0,0.05]
[1643744204315,0.065054,38446.0,38438.0,0.09154009]
[1643744204720,0.06505402,38447.0,38438.0,0.09154009]
[1643744204916,0.22498181,38451.0,38438.0,0.09154009]
[1643744205114,0.64089263,38453.0,38442.0,0.01911391]
[1643744205315,0.64089263,38453.0,38438.0,0.09154009]
[1643744205520,0.06503867,38451.0,38448.0,0.19325848]
[1643744205716,0.06503867,38451.0,38448.0,0.09500018]
[1643744206320,0.06503867,38451.0,38445.0,0.21292963]
[1643744206520,0.06503867,38451.0,38439.0,0.1]
[1643744206717,0.06503867,38451.0,38440.0,0.11062729]
[1643744206718,0.21179616,38450.0,38440.0,0.11062729]
[1643744207119,0.21297112,38450.0,38445.0,0.01818462]
[1643744207423,0.21297112,38450.0,38440.0,0.11062729]
[1643744207621,0.21297112,38450.0,38443.0,0.10172227]
[1643744207820,0.21297112,38450.0,38440.0,0.11062729]
[1643744208076,0.18788223,38447.0,38436.0,0.00116717]
[1643744208271,0.06504844,38445.0,38436.0,0.00116717]
[1643744208471,0.21162699,38444.0,38433.0,0.051]
[1643744208672,0.27631085,38444.0,38436.0,0.00116717]
[1643744208973,0.09495363,38442.0,38436.0,0.00116717]
[1643744209171,0.09495363,38442.0,38440.0,0.02082016]
[1643744209172,0.8869782,38441.0,38440.0,0.02082016]
[1643744209370,1.07212971,38441.0,38440.0,0.02082016]
[1643744209570,1.13718741,38441.0,38440.0,0.02082016]
[1643744209976,1.13718741,38441.0,38436.0,0.00116717]
[1643744210374,0.065064,38440.0,38436.0,0.00116717]
[1643744210573,0.56177914,38439.0,38436.0,0.00116717]
[1643744210873,0.61177914,38439.0,38435.0,0.01829211]
[1643744211072,0.61177914,38439.0,38436.0,0.00116717]
[1643744211917,0.61177914,38439.0,38433.0,0.001]
[1643744212118,0.26183214,38439.0,38436.0,0.00116719]
[1643744213222,0.26183214,38439.0,38433.0,0.001]
[1643744213423,0.26183214,38439.0,38436.0,0.00116719]
[1643744214924,0.05,38439.0,38436.0,0.00116719]
[1643744215325,0.21008579,38438.0,38436.0,0.00116719]
[1643744215573,0.21008579,38438.0,38433.0,0.001]
[1643744215574,0.06506295,38437.0,38433.0,0.001]
[1643744215767,0.06506295,38437.0,38435.0,0.0011672]
[1643744216170,0.90021451,38441.0,38435.0,0.0011672]
[1643744216171,0.13011587,38442.0,38435.0,0.0011672]
[1643744216372,0.21000654,38446.0,38435.0,0.0011672]
[1643744216573,0.06504586,38444.0,38435.0,0.0011672]
[1643744216772,0.06504586,38444.0,38433.0,0.001]
[1643744216973,0.34879786,38448.0,38436.0,0.04494014]
[1643744216974,0.13009379,38448.0,38436.0,0.04494014]
[1643744217172,0.13009379,38448.0,38442.0,0.36431563]
[1643744218373,0.19513399,38448.0,38442.0,0.36431563]
[1643744218773,0.19513399,38448.0,38442.0,0.07864143]
[1643744219174,0.0650402,38448.0,38442.0,0.07864143]
[1643744220218,0.0650402,38448.0,38437.0,0.23539121]
[1643744220423,0.0650402,38448.0,38433.0,0.001]
[1643744220424,0.31811954,38447.0,38433.0,0.001]
[1643744220625,0.31811954,38447.0,38436.0,0.00108215]
[1643744220626,0.06505688,38444.0,38436.0,0.00108215]
[1643744220817,0.66486164,38443.0,38436.0,0.00108215]
[1643744221017,0.397847,38443.0,38436.0,0.00108215]
[1643744221218,0.27232942,38443.0,38440.0,0.02096216]
[1643744221419,0.15228939,38441.0,38440.0,0.02096216]
[1643744221620,0.48006104,38442.0,38440.0,0.02096216]
[1643744221621,0.13011404,38442.0,38440.0,0.02096216]
[1643744221820,0.06505688,38444.0,38440.0,0.02096216]
[1643744222017,0.06505688,38444.0,38436.0,0.0797231]
[1643744222720,0.18594951,38443.0,38436.0,0.09845997]
[1643744222923,0.18594951,38443.0,38436.0,0.0797231]
[1643744224668,0.06505688,38444.0,38436.0,0.1297231]
[1643744225474,0.06505688,38444.0,38441.0,0.10622793]
[1643744225770,0.06505688,38444.0,38441.0,0.33540303]
[1643744226276,0.065047,38453.0,38441.0,0.33540303]
[1643744226277,0.065039,38453.0,38442.0,0.23408632]
[1643744226476,0.17562704,38452.0,38441.0,0.38540303]
[1643744226672,0.05,38451.0,38441.0,0.38540303]
[1643744226915,0.05622703,38452.0,38449.0,0.07730067]
[1643744227116,0.4,38450.0,38448.0,0.10029395]
[1643744228122,0.05,38455.0,38448.0,0.10029395]
[1643744228320,0.06502955,38455.0,38448.0,0.10029395]
[1643744229315,0.06502955,38455.0,38448.0,0.15029395]
[1643744230566,0.06502955,38455.0,38449.0,0.28675482]
[1643744230766,0.06502955,38455.0,38449.0,0.38675482]
[1643744230963,0.06502955,38455.0,38449.0,0.1]
[1643744231364,0.00136852,38454.0,38449.0,0.1]
[1643744231962,0.00136852,38454.0,38450.0,0.21482543]
[1643744232362,0.06502955,38455.0,38449.0,0.1]
[1643744232564,0.00136852,38454.0,38449.0,0.1]
[1643744232962,0.00136852,38454.0,38453.0,0.11810825]
[1643744233368,0.40136852,38454.0,38453.0,0.11810825]
[1643744233564,0.4,38454.0,38453.0,0.11810825]
[1643744233765,0.4,38454.0,38449.0,0.12000442]
[1643744233964,0.4,38454.0,38450.0,0.2369315]
[1643744234418,0.4,38454.0,38448.0,0.10029395]
[1643744234617,0.4,38454.0,38445.0,0.02107035]
[1643744234820,0.15297675,38452.0,38445.0,0.02107035]
[1643744235021,0.06503687,38451.0,38445.0,0.02107035]
[1643744236324,0.349947,38450.0,38445.0,0.02107035]
[1643744236524,0.28296438,38449.0,38445.0,0.02107035]
[1643744236821,0.07128003,38447.0,38445.0,0.02107035]
[1643744237019,0.1301091,38444.0,38435.0,0.12436676]
[1643744237221,0.0479,38443.0,38441.0,0.12188723]
[1643744237422,0.00622703,38446.0,38441.0,0.12188723]
[1643744237622,0.00622703,38447.0,38441.0,0.12188723]
[1643744237821,0.28506438,38448.0,38441.0,0.12188723]
[1643744238091,0.00622703,38447.0,38441.0,0.12188723]
[1643744238287,0.0650533,38443.0,38441.0,0.12188723]
[1643744238692,0.61497488,38442.0,38438.0,0.01866677]
[1643744238890,0.21561928,38441.0,38438.0,0.01866677]
[1643744239088,0.21561928,38441.0,38435.0,0.00116676]
[1643744239287,0.4,38442.0,38435.0,0.00116676]
[1643744239691,0.09714995,38440.0,38433.0,0.12087252]
[1643744239892,0.09714995,38440.0,38435.0,0.00116676]
[1643744239893,0.2448443,38439.0,38435.0,0.00116676]
[1643744240887,0.2448443,38439.0,38435.0,0.29921055]
[1643744241086,0.2448443,38439.0,38435.0,0.30037733]
[1643744241087,0.06505858,38438.0,38435.0,0.30037733]
[1643744241399,0.13009197,38447.0,38436.0,0.1]
[1643744241690,0.13009197,38447.0,38435.0,0.35037733]
[1643744241931,0.34093157,38447.0,38435.0,0.34921055]
[1643744242131,0.13009197,38447.0,38435.0,0.35037731]
[1643744242332,0.40839706,38447.0,38443.0,0.12535953]
[1643744242534,0.40946125,38447.0,38442.0,0.08395179]
[1643744242732,0.40867291,38447.0,38442.0,0.08395179]
[1643744242932,0.40730089,38447.0,38442.0,0.08395179]
[1643744243131,0.40682573,38447.0,38442.0,0.08395179]
[1643744243831,0.40682573,38447.0,38442.0,0.17603811]
[1643744244036,0.19513897,38447.0,38442.0,0.17603811]
[1643744244232,0.13009197,38447.0,38442.0,0.17603811]
[1643744244434,0.33974192,38447.0,38442.0,0.08395179]
[1643744245433,0.33974192,38447.0,38442.0,0.17700253]
[1643744245678,0.13009197,38447.0,38442.0,0.17700253]
[1643744247880,0.22550509,38446.0,38438.0,0.26978169]
[1643744248079,0.065052,38444.0,38438.0,0.26978169]
[1643744248279,0.06504823,38443.0,38438.0,0.26978169]
[1643744248981,0.06504823,38443.0,38440.0,0.10850201]
[1643744249424,0.06504823,38443.0,38442.0,0.17136487]
[1643744249630,0.13007745,38451.0,38442.0,0.17136487]
[1643744249826,0.23506438,38451.0,38442.0,0.17136487]
[1643744250026,0.55897645,38455.0,38442.0,0.17136487]
[1643744250228,0.065035,38454.0,38442.0,0.17136487]
[1643744250425,0.23506438,38453.0,38442.0,0.17136487]
[1643744250626,0.24129141,38453.0,38451.0,0.07926707]
[1643744250826,0.349947,38452.0,38442.0,0.27136487]
[1643744251025,0.06503661,38450.0,38442.0,0.27136487]
[1643744251225,0.06503661,38450.0,38442.0,0.17136487]
[1643744251627,0.06503661,38450.0,38446.0,0.10026152]
[1643744251830,0.06503661,38450.0,38447.0,0.09638437]
[1643744252226,0.28113525,38453.0,38447.0,0.09638437]
[1643744253769,0.28113525,38453.0,38444.0,0.02144523]
[1643744253969,0.00622703,38451.0,38444.0,0.02144523]
[1643744254270,0.28113525,38453.0,38444.0,0.02144523]
[1643744254271,0.00622703,38448.0,38444.0,0.02144523]
[1643744254475,0.349947,38447.0,38444.0,0.02144523]
[1643744254670,0.00622703,38445.0,38444.0,0.02144523]
[1643744254872,1.33568218,38445.0,38444.0,0.02144523]
[1643744255068,1.252047,38445.0,38444.0,0.02144523]
[1643744255469,1.252047,38445.0,38436.0,0.33316806]
[1643744255669,0.22685322,38444.0,38436.0,0.33316806]
[1643744255872,0.06504732,38442.0,38440.0,0.11843459]
[1643744256072,0.0521,38448.0,38440.0,0.11843459]
[1643744256273,0.0521,38448.0,38446.0,0.07516109]
[1643744256918,0.0521,38448.0,38446.0,0.19256689]
[1643744257321,0.11713691,38448.0,38446.0,0.19256689]
[1643744257919,0.06503691,38448.0,38446.0,0.19256689]
[1643744258519,0.06503691,38448.0,38446.0,0.1174058]
[1643744258720,0.06503691,38448.0,38442.0,0.01824537]
[1643744258721,0.00622703,38445.0,38442.0,0.01824537]
[1643744258920,0.06504196,38445.0,38442.0,0.01824537]
[1643744259323,0.20802206,38444.0,38442.0,0.01824537]
[1643744259524,0.4,38443.0,38437.0,0.29354487]
[1643744259726,0.4,38443.0,38440.0,0.10409124]
[1643744259921,0.4,38443.0,38437.0,0.40009951]
[1643744260123,0.06504457,38442.0,38437.0,0.29354487]
[1643744260671,0.06504457,38442.0,38435.0,0.00116676]
[1643744261272,0.06504457,38442.0,38435.0,0.10889917]
[1643744261473,0.06504457,38442.0,38435.0,0.10948393]
[1643744262073,0.06504457,38442.0,38435.0,0.08774283]
[1643744262473,0.06504457,38442.0,38435.0,0.08715807]
[1643744262674,0.06504457,38442.0,38435.0,0.08774283]
[1643744263073,0.06504457,38442.0,38435.0,0.00058476]
[1643744263275,0.21071293,38441.0,38435.0,0.00058476]
[1643744263473,0.13009857,38442.0,38437.0,0.17441913]
[1643744263680,0.06504457,38442.0,38437.0,0.17441913]
[1643744263874,0.06504457,38442.0,38440.0,0.26885808]
[1643744264073,0.06504457,38442.0,38437.0,0.17441913]
[1643744264717,0.06504457,38442.0,38436.0,0.01899422]
[1643744264924,0.21651902,38441.0,38436.0,0.01899422]
[1643744265122,0.21651902,38441.0,38435.0,0.25436666]
[1643744265123,0.3966288,38441.0,38435.0,0.25436666]
[1643744265319,0.18010978,38441.0,38435.0,0.25436666]
[1643744265519,0.21978246,38440.0,38435.0,0.00116676]
[1643744265718,0.28483497,38440.0,38437.0,0.10181944]
[1643744265919,0.06505251,38440.0,38437.0,0.10181944]
[1643744266118,0.00622703,38445.0,38437.0,0.10181944]
[1643744266119,0.13009283,38445.0,38437.0,0.10181944]
[1643744266319,0.13631986,38445.0,38437.0,0.10181944]
[1643744266517,0.13009283,38445.0,38437.0,0.10181944]
[1643744266720,0.24129141,38448.0,38443.0,0.10914008]
[1643744266922,0.00622703,38448.0,38443.0,0.10914008]
[1643744267120,0.05,38448.0,38443.0,0.10914008]
[1643744267321,0.28506438,38450.0,38443.0,0.10914008]
[1643744267525,0.28506438,38450.0,38445.0,0.08373838]
[1643744267723,0.00622703,38444.0,38435.0,0.00116676]
[1643744267922,0.23506438,38446.0,38435.0,0.00116676]
[1643744268182,0.065047,38446.0,38438.0,0.2810403]
[1643744268378,0.065047,38446.0,38433.0,0.051]
[1643744268379,0.00622703,38442.0,38433.0,0.051]
[1643744268582,0.00622703,38442.0,38435.0,0.00116676]
[1643744268779,0.2093976,38440.0,38435.0,0.00116676]
[1643744268977,0.2093976,38440.0,38435.0,0.00109938]
[1643744268978,0.21578745,38439.0,38435.0,0.00109938]
[1643744269176,0.2614976,38440.0,38435.0,0.00109938]
[1643744269378,0.130132,38439.0,38435.0,0.00109938]
[1643744269578,0.065065,38438.0,38433.0,0.001]
[1643744269779,0.19837961,38437.0,38433.0,0.001]
[1643744270183,0.065065,38438.0,38433.0,0.001]
[1643744270578,0.065064,38437.0,38433.0,0.001]
[1643744272825,0.06506276,38435.0,38433.0,0.001]
[1643744276266,0.06505208,38438.0,38433.0,0.001]
[1643744276470,0.00622703,38440.0,38433.0,0.001]
[1643744276667,0.00622703,38440.0,38435.0,0.27400728]
[1643744276869,0.00622703,38440.0,38435.0,0.37208879]
[1643744277070,0.00622703,38440.0,38435.0,0.37325524]
[1643744277869,0.00622703,38440.0,38435.0,0.09924796]
[1643744278071,0.00622703,38440.0,38433.0,0.001]
[1643744278372,1.05,38439.0,38433.0,0.00037821]
[1643744278571,0.06506681,38435.0,38433.0,0.00037821]
[1643744280119,0.00622703,38434.0,38433.0,0.00037821]
[1643744280319,0.06506681,38435.0,38433.0,0.00037821]
[1643744280521,0.13013181,38435.0,38433.0,0.00037821]
[1643744281721,0.06506681,38435.0,38433.0,0.00037821]
[1643744282620,0.07127939,38437.0,38433.0,0.17996989]
[1643744282820,0.07127939,38437.0,38433.0,0.25626136]
[1643744283083,0.00760115,38440.0,38435.0,0.12063108]
[1643744283677,0.00760115,38440.0,38435.0,0.36761919]
[1643744284075,0.06504952,38439.0,38435.0,0.36761919]
[1643744284476,0.06504952,38439.0,38435.0,0.24698811]
[1643744284675,0.06504952,38439.0,38435.0,0.26623233]
[1643744285476,0.06504952,38439.0,38435.0,0.24698811]
[1643744287117,0.06504952,38439.0,38434.0,0.11343214]
[1643744287517,0.13010852,38439.0,38434.0,0.11343214]
[1643744287717,0.13633555,38439.0,38434.0,0.12384014]
[1643744287919,0.13010852,38439.0,38434.0,0.010408]
[1643744288118,0.19516852,38439.0,38433.0,0.02082152]
[1643744288319,0.06506076,38436.0,38433.0,0.02082152]
[1643744288923,0.06506076,38436.0,38433.0,0.01966085]
[1643744289220,0.06506076,38436.0,38433.0,0.02082153]
[1643744289619,0.06506076,38436.0,38433.0,0.00153889]
[1643744290120,0.06506076,38436.0,38433.0,0.00037821]
[1643744290320,0.06506076,38436.0,38433.0,0.00153889]
[1643744290571,0.07128283,38439.0,38433.0,0.00153889]
[1643744290769,0.00622703,38439.0,38434.0,0.08350094]
[1643744291567,0.00137417,38440.0,38434.0,0.08350094]
[1643744292167,0.0076012,38440.0,38434.0,0.08350094]
[1643744292367,0.00622703,38440.0,38434.0,0.08350094]
[1643744292768,0.00622703,38440.0,38433.0,0.00153888]
[1643744292769,0.00760121,38440.0,38433.0,0.00153888]
[1643744293271,0.06506,38438.0,38434.0,0.02172904]
[1643744293468,0.19517572,38438.0,38434.0,0.02172904]
[1643744293673,0.61517572,38438.0,38434.0,0.02172904]
[1643744294168,0.61517572,38438.0,38433.0,0.00153888]
[1643744294423,0.00622703,38437.0,38433.0,0.00153888]
[1643744294924,0.61229144,38438.0,38433.0,0.00037821]
[1643744295123,0.61229144,38438.0,38433.0,0.00153888]
[1643744295124,0.53223144,38438.0,38433.0,0.00153888]
[1643744296123,0.53223144,38438.0,38433.0,0.00037821]
[1643744296332,0.53223144,38438.0,38433.0,0.00153888]
[1643744296725,0.59729644,38438.0,38433.0,0.00153888]
[1643744297327,0.09136,38436.0,38433.0,0.00037821]
[1643744297527,0.59551699,38435.0,38433.0,0.00153888]
[1643744297727,0.45,38434.0,38433.0,0.00153888]
[1643744297926,1.2195991,38434.0,38433.0,0.00153888]
[1643744298371,0.98219451,38434.0,38433.0,0.00037821]
[1643744298975,0.53219451,38434.0,38433.0,0.00037821]
[1643744299371,0.18224751,38434.0,38433.0,0.00037821]
[1643744299573,0.0521,38434.0,38433.0,0.00037821]
[1643744300873,0.05201941,38434.0,38433.0,5.143e-05]
[1643744301275,0.29558697,38434.0,38433.0,5.143e-05]
[1643744301481,0.64554497,38434.0,38433.0,5.143e-05]
[1643744301675,0.69554497,38434.0,38433.0,5.143e-05]
[1643744305668,0.86865016,38434.0,38433.0,5.143e-05]
[1643744305869,0.69554497,38434.0,38433.0,5.143e-05]
[1643744307674,0.18171901,38438.0,38433.0,5.143e-05]
[1643744307874,0.05,38434.0,38433.0,5.143e-05]
[1643744308071,0.402055,38434.0,38433.0,5.143e-05]
[1643744308271,0.402055,38434.0,38433.0,0.0012121]
[1643744309072,0.0521,38434.0,38433.0,0.0012121]
[1643744309325,0.0521,38434.0,38433.0,5.143e-05]
[1643744309528,0.18171901,38438.0,38433.0,5.143e-05]
[1643744309922,0.18171901,38438.0,38434.0,0.349955]
[1643744310123,0.18171901,38438.0,38433.0,5.143e-05]
[1643744310327,0.18171901,38438.0,38437.0,0.74756658]
[1643744310525,0.18171901,38438.0,38437.0,1.19756658]
[1643744310824,0.18171901,38438.0,38437.0,1.54752158]
[1643744311022,0.18171901,38438.0,38437.0,1.09752158]
[1643744311424,0.18171901,38438.0,38437.0,0.09756658]
[1643744312622,0.18171901,38438.0,38437.0,0.54756658]
[1643744314472,0.18171901,38438.0,38437.0,0.94756658]
[1643744314869,0.18171901,38438.0,38437.0,0.54756658]
[1643744315271,0.18171901,38438.0,38437.0,0.09756658]
[1643744315471,0.18171901,38438.0,38435.0,0.10402937]
[1643744315672,0.18171901,38438.0,38433.0,0.0012121]
[1643744315673,0.56802082,38437.0,38433.0,0.0012121]
[1643744316273,0.63308582,38437.0,38433.0,0.0012121]
[1643744316479,0.28313082,38437.0,38433.0,0.09406596]
[1643744316816,0.40868251,38437.0,38433.0,0.09522663]
[1643744317019,0.19519662,38437.0,38433.0,0.09522663]
[1643744317417,0.40964004,38437.0,38435.0,0.001]
[1643744318016,0.19519662,38437.0,38435.0,0.001]
[1643744318218,0.40825225,38437.0,38435.0,0.001]
[1643744319017,0.19519662,38437.0,38435.0,0.001]
[1643744319218,0.06506462,38437.0,38435.0,0.001]
[1643744320420,0.77008825,38436.0,38435.0,0.001]
[1643744321269,1.22214325,38436.0,38435.0,0.001]
[1643744321469,1.21714325,38436.0,38435.0,0.001]
[1643744321969,0.4018052,38434.0,38433.0,0.0012121]
[1643744322173,1.10155112,38434.0,38433.0,0.0012121]
[1643744322368,1.18131327,38434.0,38433.0,5.143e-05]
[1643744322571,0.46893186,38434.0,38433.0,5.143e-05]
[1643744322872,0.11897686,38434.0,38433.0,5.143e-05]
[1643744323370,1.30119876,38434.0,38433.0,5.143e-05]
[1643744323570,1.70115376,38434.0,38433.0,5.143e-05]
[1643744324419,0.51893186,38434.0,38433.0,5.143e-05]
[1643744324726,0.39320878,38434.0,38433.0,5.143e-05]
[1643744325321,1.14320878,38434.0,38433.0,5.143e-05]
[1643744325520,1.55823478,38434.0,38433.0,5.143e-05]